bitfinex-derivatives/quotes_BTCF0:USTF0_20251109
["timestamp","ask_amount","ask_price","bid_price","bid_amount"]
[1762722476870,0.05928803,104740.0,104730.0,0.68474996]
[1762722478071,0.15478453,104740.0,104730.0,0.608703]
[1762722478368,0.15478453,104740.0,104730.0,0.68474996]
[1762722483382,0.15478453,104740.0,104730.0,0.68475266]
[1762722483565,0.05928803,104740.0,104730.0,0.68475266]
[1762722484576,0.05928803,104740.0,104730.0,0.6087057]
[1762722484775,0.05928803,104740.0,104730.0,0.68475266]
[1762722486179,0.05928803,104740.0,104730.0,0.58924696]
[1762722486771,0.05928803,104740.0,104730.0,0.06551069]
[1762722487775,0.05516,104730.0,104720.0,0.43684696]
[1762722487967,0.05735803,104730.0,104720.0,0.43684696]
[1762722488974,0.05735803,104730.0,104720.0,0.43984696]
[1762722489482,0.05735803,104730.0,104720.0,0.44384696]
[1762722489877,0.05735803,104730.0,104720.0,0.3678]
[1762722490067,0.41815803,104730.0,104720.0,0.007]
[1762722490272,0.1506839,104710.0,104700.0,0.43684696]
[1762722490475,0.15288193,104710.0,104700.0,0.43684696]
[1762722491877,0.15388193,104710.0,104700.0,0.43984696]
[1762722493181,0.15488193,104710.0,104700.0,0.54037996]
[1762722494163,0.15488193,104710.0,104700.0,0.44484696]
[1762722494971,0.15488193,104710.0,104700.0,0.54037996]
[1762722497285,0.05935803,104710.0,104700.0,0.54037996]
[1762722497475,0.03825803,104710.0,104700.0,0.54037996]
[1762722497675,0.05935803,104710.0,104700.0,0.54037996]
[1762722498378,0.15488193,104710.0,104700.0,0.54037996]
[1762722500284,0.15488193,104710.0,104700.0,0.52484092]
[1762722501290,0.15488193,104710.0,104700.0,0.42930792]
[1762722502184,0.51568193,104710.0,104700.0,0.008]
[1762722502485,0.51568193,104710.0,104690.0,0.00477578]
[1762722502486,0.05516,104700.0,104690.0,0.00477578]
[1762722502681,0.05735803,104700.0,104690.0,0.00477578]
[1762722502885,0.05735803,104700.0,104690.0,0.00527578]
[1762722503676,0.05735803,104700.0,104690.0,0.08132274]
[1762722505186,0.06935803,104700.0,104690.0,0.08332274]
[1762722507292,0.43015803,104700.0,104690.0,0.08332274]
[1762722510090,0.43015803,104700.0,104690.0,0.08307274]
[1762722510295,0.43015803,104700.0,104690.0,0.002]
[1762722510494,0.43015803,104700.0,104690.0,0.00225]
[1762722511286,0.43015803,104700.0,104690.0,0.07854696]
[1762722512481,0.43015803,104700.0,104690.0,0.002]
[1762722512686,0.43015803,104700.0,104690.0,0.0025]
[1762722513395,0.43015803,104700.0,104690.0,0.00225]
[1762722513995,0.43015803,104700.0,104690.0,0.07854696]
[1762722514494,0.52569103,104700.0,104690.0,0.002]
[1762722516498,0.52569103,104700.0,104690.0,0.00225]
[1762722517498,0.52569103,104700.0,104690.0,0.07829696]
[1762722517899,0.52569103,104700.0,104690.0,0.07854696]
[1762722518395,0.52569103,104700.0,104690.0,0.07829696]
[1762722519489,0.52569103,104700.0,104690.0,0.07804696]
[1762722520193,0.52569103,104700.0,104690.0,0.07604696]
[1762722520392,0.52569103,104700.0,104690.0,0.06250503]
[1762722523201,0.05728,104680.0,104670.0,0.60437402]
[1762722523401,0.05947803,104680.0,104670.0,0.68030336]
[1762722524401,0.06247803,104680.0,104670.0,0.68130336]
[1762722524600,0.06547803,104680.0,104670.0,0.68230336]
[1762722526398,0.03104658,104680.0,104670.0,0.68230336]
[1762722526603,0.03901658,104680.0,104670.0,0.69338336]
[1762722528198,0.03010803,104680.0,104670.0,0.69338336]
[1762722528402,0.05163803,104680.0,104670.0,0.69338336]
[1762722528602,0.14718933,104680.0,104670.0,0.69338336]
[1762722528802,0.05163803,104680.0,104670.0,0.69338336]
[1762722529106,0.14718933,104680.0,104670.0,0.78861924]
[1762722530005,0.05163803,104680.0,104670.0,0.78861924]
[1762722530508,0.06522803,104680.0,104670.0,0.63013924]
[1762722530704,0.16077933,104680.0,104670.0,0.63013924]
[1762722531002,0.16077933,104680.0,104670.0,0.53458284]
[1762722531194,0.52157933,104680.0,104670.0,0.08764142]
[1762722531403,0.05716,104670.0,104660.0,0.09041857]
[1762722531706,0.05935803,104670.0,104660.0,0.67509949]
[1762722532104,0.15491843,104670.0,104660.0,0.67509949]
[1762722532406,0.15591843,104670.0,104660.0,0.67509949]
[1762722532599,0.15591843,104670.0,104660.0,0.58945807]
[1762722532800,0.15591843,104670.0,104660.0,0.59045807]
[1762722533104,0.15791843,104670.0,104660.0,0.59045807]
[1762722533596,0.16191843,104670.0,104660.0,0.59145807]
[1762722533804,0.16491843,104670.0,104660.0,0.59145807]
[1762722534604,0.51399986,104690.0,104680.0,0.04267]
[1762722534904,0.05838613,104690.0,104680.0,0.23858075]
[1762722535113,0.05838613,104690.0,104680.0,0.22606075]
[1762722536009,0.07438613,104690.0,104680.0,0.22706075]
[1762722536303,0.07438613,104690.0,104680.0,0.58786075]
[1762722536907,0.06738613,104690.0,104680.0,0.58786075]
[1762722537099,0.07038613,104690.0,104680.0,0.58786075]
[1762722537708,0.07038613,104690.0,104680.0,0.5660991]
[1762722537907,0.06138613,104690.0,104680.0,0.5790191]
[1762722538406,0.06138613,104690.0,104680.0,0.7264191]
[1762722538616,0.06138613,104690.0,104680.0,0.7254191]
[1762722538810,0.06038613,104690.0,104680.0,0.7274191]
[1762722539107,0.06338613,104690.0,104680.0,0.7274191]
[1762722541208,0.06338613,104690.0,104680.0,0.71187507]
[1762722542211,0.00587613,104690.0,104680.0,0.79751649]
[1762722542704,0.00587613,104690.0,104680.0,0.71187507]
[1762722543107,0.02850613,104690.0,104680.0,0.79751649]
[1762722543408,0.00587613,104690.0,104680.0,0.79751649]
[1762722543606,0.00514346,104690.0,104680.0,0.79751649]
[1762722548407,0.00587613,104690.0,104680.0,0.79751649]
[1762722548611,0.06316613,104690.0,104680.0,0.71187507]
[1762722551112,0.06316613,104690.0,104680.0,0.69633252]
[1762722554114,0.06316613,104690.0,104680.0,0.78197394]
[1762722556409,0.06316613,104690.0,104680.0,0.69633252]
[1762722558216,0.06316613,104690.0,104680.0,0.67457201]
[1762722561210,0.06316613,104690.0,104680.0,0.65902879]
[1762722561613,0.06316613,104690.0,104680.0,0.57338737]
[1762722561807,0.15870833,104690.0,104680.0,0.65902879]
[1762722562514,0.15870833,104690.0,104680.0,0.57338737]
[1762722562718,0.15870833,104690.0,104680.0,0.65902879]
[1762722563619,0.06316613,104690.0,104680.0,0.65902879]
[1762722568921,0.15870833,104690.0,104680.0,0.65902879]
[1762722571021,0.06316613,104690.0,104680.0,0.65902879]
[1762722571216,0.06316613,104690.0,104680.0,0.60876142]
[1762722571413,0.15870833,104690.0,104680.0,0.70431272]
[1762722571718,0.06316613,104690.0,104680.0,0.70431272]
[1762722573923,0.06316613,104690.0,104680.0,0.682552]
[1762722579118,0.15870833,104690.0,104680.0,0.682552]
[1762722580128,0.15870833,104690.0,104680.0,0.2262007]
[1762722581124,0.3815323,104690.0,104680.0,0.21065612]
[1762722581932,0.3815323,104690.0,104680.0,0.18889371]
[1762722582230,0.3815323,104690.0,104680.0,0.08764142]
[1762722584831,0.7423323,104690.0,104680.0,0.08764142]
[1762722588023,0.7423323,104690.0,104680.0,0.18319272]
[1762722589133,0.7423323,104690.0,104680.0,0.08764142]
[1762722589634,0.51950833,104690.0,104680.0,0.08764142]
[1762722589834,0.51950833,104690.0,104680.0,0.18319272]
[1762722590136,0.51950833,104690.0,104680.0,0.18119272]
[1762722590432,0.51950833,104690.0,104680.0,0.08564142]
[1762722590833,0.51950833,104690.0,104680.0,0.0761451]
[1762722590834,0.47578833,104690.0,104680.0,0.0761451]
[1762722591032,0.52037833,104690.0,104680.0,0.0761451]
[1762722591236,0.52037833,104690.0,104680.0,0.06059996]
[1762722592236,0.52037833,104690.0,104670.0,0.4563548]
[1762722592536,0.1534804,104670.0,104660.0,0.53729075]
[1762722592736,0.15567843,104670.0,104660.0,0.17649075]
[1762722593236,0.15567843,104670.0,104660.0,0.08092225]
[1762722594136,0.15567843,104670.0,104660.0,0.08192225]
[1762722595248,0.15667843,104670.0,104660.0,0.08292225]
[1762722595747,0.15667843,104670.0,104660.0,0.08192225]
[1762722595948,0.15867843,104670.0,104660.0,0.08192225]
[1762722596547,0.15867843,104670.0,104660.0,0.17749175]
[1762722599149,0.06311803,104670.0,104660.0,0.17749175]
[1762722599340,0.15867843,104670.0,104660.0,0.17749175]
[1762722600848,0.15867843,104670.0,104660.0,0.53829175]
[1762722601150,0.15867843,104670.0,104660.0,0.52274544]
[1762722601351,0.15867843,104670.0,104660.0,0.5335146]
[1762722602449,0.06311803,104670.0,104660.0,0.5335146]
[1762722602751,0.15867843,104670.0,104660.0,0.5335146]
[1762722604852,0.15867843,104670.0,104660.0,0.51174918]
[1762722605052,0.06311803,104670.0,104660.0,0.51174918]
[1762722607756,0.15867843,104670.0,104660.0,0.51174928]
[1762722617561,0.15867843,104670.0,104660.0,0.49620224]
[1762722621662,0.15867843,104670.0,104660.0,0.0761451]
[1762722622660,0.15867843,104670.0,104660.0,0.1717147]
[1762722623161,0.15867843,104670.0,104660.0,0.14994845]
[1762722623560,0.3815024,104670.0,104660.0,0.0955696]
[1762722623958,0.3815024,104670.0,104660.0,0.1717147]
[1762722625571,0.3815024,104670.0,104660.0,0.0761451]
[1762722626267,0.1534196,104660.0,104650.0,0.4563752]
[1762722626565,0.15561763,104660.0,104650.0,0.5325203]
[1762722626867,0.51641763,104660.0,104650.0,0.0761451]
[1762722627060,0.51641763,104660.0,104640.0,0.5325286]
[1762722627061,0.05942,104650.0,104640.0,0.171733]
[1762722627259,0.43240777,104650.0,104640.0,0.171733]
[1762722627461,0.07160777,104650.0,104640.0,0.171733]
[1762722627762,0.07160777,104650.0,104640.0,0.15618363]
[1762722628567,0.16718657,104650.0,104640.0,0.15618363]
[1762722628968,0.16818657,104650.0,104640.0,0.15918363]
[1762722630067,0.16918657,104650.0,104640.0,0.16118363]
[1762722631271,0.16918657,104650.0,104640.0,0.0811451]
[1762722632367,0.16918657,104650.0,104640.0,0.1767329]
[1762722632771,0.16918657,104650.0,104640.0,0.005]
[1762722632963,0.1550078,104640.0,104630.0,0.17652042]
[1762722633162,0.15720583,104640.0,104630.0,0.08092362]
[1762722633360,0.51800583,104640.0,104630.0,0.08092362]
[1762722633767,0.51800583,104640.0,104630.0,0.17652052]
[1762722633968,0.15820583,104640.0,104630.0,0.17952052]
[1762722634364,0.06261803,104640.0,104630.0,0.17952052]
[1762722634966,0.06361803,104640.0,104630.0,0.54432052]
[1762722635166,0.15920583,104640.0,104630.0,0.18352052]
[1762722636277,0.06361803,104640.0,104630.0,0.18352052]
[1762722636478,0.15920583,104640.0,104630.0,0.18352052]
[1762722637968,0.06361803,104640.0,104630.0,0.54432052]
[1762722638172,0.15920583,104640.0,104630.0,0.54432052]
[1762722640075,0.15920583,104640.0,104630.0,0.539542]
[1762722640473,0.06361803,104640.0,104630.0,0.539542]
[1762722641677,0.04047803,104640.0,104630.0,0.539542]
[1762722641877,0.06361803,104640.0,104630.0,0.539542]
[1762722647875,0.15920583,104640.0,104630.0,0.539542]
[1762722649682,0.15920583,104640.0,104630.0,0.686942]
[1762722650187,0.15920583,104640.0,104630.0,0.326142]
[1762722653087,0.15920583,104640.0,104630.0,0.33572677]
[1762722655193,0.15920583,104640.0,104630.0,0.32017538]
[1762722660193,0.52000583,104640.0,104630.0,0.32017538]
[1762722661497,0.52000583,104640.0,104630.0,0.23312987]
[1762722661703,0.52000583,104640.0,104630.0,0.1474]
[1762722662004,0.52000583,104640.0,104630.0,0.23312987]
[1762722662999,0.6057357,104640.0,104630.0,0.11194329]
[1762722663200,0.1184661,104620.0,104610.0,0.4564093]
[1762722663503,0.15526413,104620.0,104610.0,0.47470987]
[1762722664002,0.15526413,104620.0,104610.0,0.57032507]
[1762722664604,0.15626413,104620.0,104610.0,0.57032507]
[1762722664902,0.15626413,104620.0,104610.0,0.47470987]
[1762722665204,0.15626413,104620.0,104610.0,0.11390987]
[1762722665703,0.15726413,104620.0,104610.0,0.102356]
[1762722666298,0.05746,104610.0,104600.0,0.00477989]
[1762722666501,0.05746,104590.0,104580.0,0.54724677]
[1762722666701,0.05965803,104590.0,104580.0,0.63297664]
[1762722667101,0.15529153,104590.0,104580.0,0.63297664]
[1762722667310,0.05965803,104590.0,104580.0,0.63297664]
[1762722667704,0.15629153,104590.0,104580.0,0.63297664]
[1762722668209,0.05746,104580.0,104570.0,0.37066126]
[1762722668511,0.05965803,104580.0,104570.0,0.09559113]
[1762722668713,0.05965803,104580.0,104570.0,0.19124293]
[1762722669008,0.51610063,104580.0,104570.0,0.09559113]
[1762722669306,0.15530063,104580.0,104570.0,0.00732126]
[1762722669508,0.51710063,104580.0,104570.0,0.09451113]
[1762722669709,0.51710063,104580.0,104570.0,0.00878126]
[1762722670014,0.51710063,104580.0,104570.0,0.09451113]
[1762722670305,0.05746,104560.0,104550.0,0.4615499]
[1762722670505,0.05965803,104560.0,104550.0,0.63300964]
[1762722670812,0.05965803,104560.0,104550.0,0.27220964]
[1762722671510,0.15531893,104560.0,104550.0,0.09080987]
[1762722671810,0.15731893,104560.0,104550.0,0.09280987]
[1762722672012,0.13986766,104560.0,104550.0,0.27420984]
[1762722672213,0.13986766,104560.0,104550.0,0.63500984]
[1762722673211,0.08240766,104560.0,104550.0,0.63500984]
[1762722673713,0.13986766,104560.0,104550.0,0.63500984]
[1762722673911,0.23552856,104560.0,104550.0,0.63500984]
[1762722674110,0.23552856,104560.0,104550.0,0.27420984]
[1762722674811,0.23552856,104560.0,104550.0,0.00708]
[1762722675005,0.23552856,104560.0,104550.0,0.09280987]
[1762722676914,0.23552856,104560.0,104550.0,0.00708]
[1762722677115,0.23552856,104560.0,104550.0,0.09280987]
[1762722677317,0.23552856,104560.0,104550.0,0.002]
[1762722677503,0.23552856,104560.0,104550.0,0.09280987]
[1762722679516,0.23552856,104560.0,104550.0,0.18847997]
[1762722680016,0.13986766,104560.0,104550.0,0.18847997]
[1762722680315,0.23552866,104560.0,104550.0,0.18847997]
[1762722680517,0.13986766,104560.0,104550.0,0.27420984]
[1762722680719,0.23552856,104560.0,104550.0,0.27420984]
[1762722681224,0.23552856,104560.0,104550.0,0.18847997]
[1762722681913,0.59632856,104560.0,104550.0,0.09280987]
[1762722682313,0.59632856,104560.0,104550.0,0.18847997]
[1762722682508,0.59632856,104560.0,104550.0,0.1027501]
[1762722682713,0.59632856,104560.0,104550.0,0.09280987]
[1762722683418,0.1531301,104550.0,104540.0,0.36558263]
[1762722683615,0.05746,104530.0,104520.0,0.4564943]
[1762722683916,0.16907449,104530.0,104520.0,0.44652987]
[1762722684514,0.16907449,104530.0,104520.0,0.54222737]
[1762722685006,0.17007449,104530.0,104520.0,0.54222737]
[1762722686225,0.1533775,104520.0,104510.0,0.4612854]
[1762722686520,0.08047111,104520.0,104510.0,0.54701527]
[1762722686720,0.02279111,104520.0,104510.0,0.63274514]
[1762722686911,0.02059308,104520.0,104510.0,0.63274514]
[1762722687111,0.02279111,104520.0,104510.0,0.63274514]
[1762722687312,0.02479111,104520.0,104510.0,0.64074514]
[1762722687612,0.03897111,104520.0,104510.0,0.64074514]
[1762722687922,0.02579111,104520.0,104510.0,0.64074514]
[1762722688918,0.03567769,104520.0,104510.0,0.64074514]
[1762722689317,0.03567769,104520.0,104510.0,1.02734514]
[1762722690619,0.03567769,104520.0,104510.0,0.78814514]
[1762722690921,0.03567769,104520.0,104510.0,1.02734514]
[1762722691619,0.03567769,104520.0,104510.0,0.78814514]
[1762722691813,0.03347966,104520.0,104510.0,0.78814514]
[1762722692013,0.03347966,104520.0,104510.0,1.02734514]
[1762722692716,0.15360266,104540.0,104530.0,0.0956884]
[1762722693020,0.15580069,104540.0,104530.0,0.54221827]
[1762722693210,0.1658008,104540.0,104530.0,0.54221827]
[1762722693811,0.1668008,104540.0,104530.0,0.54521827]
[1762722694122,0.1678008,104540.0,104530.0,0.54521827]
[1762722695220,0.1678008,104540.0,104530.0,0.003]
[1762722695421,0.5286008,104540.0,104530.0,0.08872987]
[1762722696021,0.5286008,104540.0,104530.0,0.18441827]
[1762722697216,0.5286008,104540.0,104530.0,0.08872987]
[1762722698115,0.5286008,104540.0,104530.0,0.18441827]
[1762722698518,0.5286009,104540.0,104530.0,0.18441827]
[1762722702024,0.5286009,104540.0,104530.0,0.1470603]
[1762722703119,0.5286009,104540.0,104530.0,0.06133043]
[1762722703325,0.5286009,104540.0,104530.0,0.1470603]
[1762722708120,0.5286009,104540.0,104530.0,0.08572987]
[1762722708726,0.1546784,104530.0,104520.0,0.18142157]
[1762722708924,0.15687643,104530.0,104520.0,0.26715144]
[1762722709828,0.05757,104520.0,104510.0,0.004784]
[1762722710028,0.23029914,104520.0,104510.0,0.18622057]
[1762722710330,0.1623313,104520.0,104510.0,0.18622057]
[1762722711023,0.5231313,104520.0,104510.0,0.09051387]
[1762722711331,0.5231313,104520.0,104510.0,0.18622057]
[1762722711835,0.4294337,104520.0,104510.0,0.18922057]
[1762722712025,0.4294337,104520.0,104510.0,0.17365135]
[1762722712225,0.4284337,104520.0,104510.0,0.0987067]
[1762722712524,0.0686337,104520.0,104510.0,0.54523657]
[1762722712825,0.0686337,104520.0,104510.0,0.5358884]
[1762722714632,0.14488321,104520.0,104510.0,0.5358884]
[1762722724528,0.14488321,104520.0,104510.0,0.4595067]
[1762722724733,0.14488321,104520.0,104510.0,0.5358884]
[1762722725646,0.24058071,104520.0,104510.0,0.5358884]
[1762722726036,0.24058071,104520.0,104510.0,0.52032042]
[1762722728035,0.14488321,104520.0,104510.0,0.52032042]
[1762722728237,0.24058081,104520.0,104510.0,0.52032042]
[1762722728739,0.14488321,104520.0,104510.0,0.52032042]
[1762722736250,0.24058081,104520.0,104510.0,0.52032042]
[1762722737750,0.14488321,104520.0,104510.0,0.52032042]
[1762722737950,0.14488321,104520.0,104510.0,0.50475202]
[1762722739149,0.24058081,104520.0,104510.0,0.06757032]
[1762722739344,0.24058081,104520.0,104510.0,0.14395202]
[1762722743356,0.14488321,104520.0,104510.0,0.14395202]
[1762722743958,0.24058071,104520.0,104510.0,0.14395202]
[1762722745857,0.24058071,104520.0,104510.0,0.50475202]
[1762722746159,0.14488321,104520.0,104510.0,0.50475202]
[1762722746358,0.24058071,104520.0,104510.0,0.50475202]
[1762722746560,0.24058071,104520.0,104510.0,0.14395202]
[1762722748360,0.24058071,104520.0,104510.0,0.12838325]
[1762722748759,0.24058071,104520.0,104510.0,0.0793817]
[1762722749157,0.24058071,104520.0,104510.0,0.003]
[1762722749356,0.60138071,104520.0,104510.0,0.0987067]
[1762722749556,0.60138071,104520.0,104510.0,0.1750884]
[1762722750559,0.14488321,104520.0,104510.0,0.1750884]
[1762722751057,0.14488321,104520.0,104510.0,0.0987067]
[1762722751257,0.14488321,104520.0,104510.0,0.1750884]
[1762722753659,0.24058071,104520.0,104510.0,0.1750884]
[1762722753858,0.14488321,104520.0,104510.0,0.1750884]
[1762722754458,0.14488321,104520.0,104510.0,0.5358884]
[1762722754955,0.24058071,104520.0,104510.0,0.5358884]
[1762722755563,0.24058071,104520.0,104510.0,0.1750884]
[1762722756465,0.24058071,104520.0,104510.0,0.0987067]
[1762722756767,0.24058071,104520.0,104510.0,0.1750884]
[1762722756956,0.24058071,104520.0,104510.0,0.003]
[1762722757263,0.60138071,104520.0,104510.0,0.003]
[1762722758261,0.60138071,104520.0,104510.0,0.00102304]
[1762722758965,0.60138071,104520.0,104510.0,0.07740474]
[1762722759168,0.60138071,104520.0,104510.0,0.17311144]
[1762722761860,0.14488321,104520.0,104510.0,0.17311144]
[1762722762367,0.24058071,104520.0,104510.0,0.17311144]
[1762722763663,0.14488321,104520.0,104510.0,0.17311144]
[1762722764569,0.24058071,104520.0,104510.0,0.17311144]
[1762722767076,0.24058071,104520.0,104510.0,0.09672974]
[1762722767271,0.14488321,104520.0,104510.0,0.17311144]
[1762722767465,0.14488321,104520.0,104510.0,0.53391144]
[1762722768271,0.14488321,104520.0,104510.0,0.51834364]
[1762722773077,0.14488321,104520.0,104510.0,0.66574364]
[1762722774876,0.14488321,104520.0,104510.0,0.76118334]
[1762722776676,0.14488321,104520.0,104510.0,0.58936194]
[1762722776877,0.14488321,104520.0,104510.0,0.67527264]
[1762722778285,0.14488321,104520.0,104510.0,0.65970461]
[1762722778583,0.26522003,104520.0,104510.0,0.65970461]
[1762722780090,0.36091763,104520.0,104510.0,0.65970461]
[1762722781086,0.36091763,104520.0,104510.0,0.53036831]
[1762722781387,0.24058081,104520.0,104510.0,0.62607501]
[1762722781686,0.41249055,104520.0,104510.0,0.62607501]
[1762722781983,0.31679295,104520.0,104510.0,0.71198571]
[1762722782184,0.33937107,104520.0,104510.0,0.71198571]
[1762722782391,0.01359,104530.0,104520.0,0.0956976]
[1762722782587,0.13390957,104530.0,104520.0,0.775719]
[1762722782790,0.13390957,104530.0,104520.0,1.014879]
[1762722784286,0.1794976,104530.0,104520.0,1.014879]
[1762722784491,0.1794976,104530.0,104520.0,0.775719]
[1762722787696,0.05917803,104530.0,104520.0,0.775719]
[1762722788198,0.05917803,104530.0,104520.0,0.7601533]
[1762722790086,0.06017803,104530.0,104520.0,0.7611533]
[1762722791697,0.2761861,104530.0,104520.0,0.4003533]
[1762722792198,0.1586376,104530.0,104520.0,0.7611533]
[1762722792699,0.06017803,104530.0,104520.0,0.7611533]
[1762722794592,0.15586653,104530.0,104520.0,0.7611533]
[1762722794794,0.15686653,104530.0,104520.0,0.7611533]
[1762722795097,0.15686653,104530.0,104520.0,0.3300084]
[1762722795600,0.15686653,104530.0,104520.0,0.2685191]
[1762722798103,0.15686653,104530.0,104520.0,0.1826084]
[1762722798303,0.15686653,104530.0,104520.0,0.16704142]
[1762722798496,0.15686653,104530.0,104520.0,0.25295212]
[1762722801195,0.15686653,104530.0,104520.0,0.08113072]
[1762722801398,0.15686653,104530.0,104520.0,0.25295212]
[1762722802404,0.27718755,104530.0,104520.0,0.1718214]
[1762722802603,0.1523276,104520.0,104510.0,0.41083179]
[1762722802799,0.24046921,104520.0,104510.0,0.49674249]
[1762722803005,0.2473316,104520.0,104510.0,0.49674249]
[1762722803207,0.23014241,104520.0,104510.0,0.49674249]
[1762722803399,0.28170904,104520.0,104510.0,0.49674249]
[1762722803606,0.28170904,104520.0,104510.0,0.19968488]
[1762722803810,0.28270904,104520.0,104510.0,0.19968488]
[1762722804102,0.28370904,104520.0,104510.0,0.20168488]
[1762722805108,0.28370904,104520.0,104510.0,0.1836091]
[1762722807506,0.61009872,104520.0,104510.0,0.002]
[1762722807698,0.152936,104500.0,104490.0,0.5424353]
[1762722807903,0.14535168,104500.0,104490.0,0.1816353]
[1762722808096,0.26853695,104500.0,104490.0,0.5424353]
[1762722808502,0.17282095,104500.0,104490.0,0.628346]
[1762722809100,0.15562185,104500.0,104490.0,0.628346]
[1762722809707,0.15962185,104500.0,104490.0,0.629346]
[1762722809896,0.0908873,104500.0,104490.0,0.629346]
[1762722810101,0.17682095,104500.0,104490.0,0.629346]
[1762722810303,0.17782095,104500.0,104490.0,0.629346]
[1762722811507,0.13327095,104500.0,104490.0,0.629346]
[1762722812305,0.17782095,104500.0,104490.0,0.629346]
[1762722813206,0.17782095,104500.0,104490.0,0.4575246]
[1762722813411,0.17782095,104500.0,104490.0,0.629346]
[1762722813909,0.17782095,104500.0,104490.0,0.776746]
[1762722814908,0.15521095,104500.0,104490.0,0.776746]
[1762722815413,0.13327095,104500.0,104490.0,1.015986]
[1762722815606,0.13327095,104500.0,104490.0,0.776746]
[1762722816415,0.17782095,104500.0,104490.0,0.8441646]
[1762722816711,0.17782095,104500.0,104490.0,0.776746]
[1762722816915,0.17782095,104500.0,104490.0,1.015986]
[1762722817312,0.15521095,104500.0,104490.0,1.015986]
[1762722817716,0.15521095,104500.0,104490.0,0.776746]
[1762722817918,0.15521095,104500.0,104490.0,1.015986]
[1762722818410,0.17782095,104500.0,104490.0,0.776746]
[1762722822616,0.17782095,104500.0,104490.0,0.76117637]
[1762722823520,0.17782095,104500.0,104490.0,0.58935497]
[1762722823718,0.17782095,104500.0,104490.0,0.76117637]
[1762722826620,0.0918873,104500.0,104490.0,0.76117637]
[1762722826813,0.21220832,104500.0,104490.0,0.76117637]
[1762722827721,0.30792422,104500.0,104490.0,0.76117637]
[1762722828323,0.21220832,104500.0,104490.0,0.76117637]
[1762722828924,0.30792422,104500.0,104490.0,0.58935497]
[1762722829120,0.21220832,104500.0,104490.0,0.67526567]
[1762722829319,0.21220832,104500.0,104490.0,0.76117637]
[1762722831518,0.21220832,104500.0,104490.0,0.61377637]
[1762722832620,0.21220832,104500.0,104490.0,0.59820604]
[1762722832820,0.28797482,104500.0,104490.0,0.59820604]
[1762722833016,0.37384845,104500.0,104490.0,0.59820604]
[1762722833319,0.25352743,104500.0,104490.0,0.59820604]
[1762722833720,0.17776093,104500.0,104490.0,0.59820604]
[1762722836833,0.17776093,104500.0,104490.0,0.50278017]
[1762722839236,0.0918873,104500.0,104490.0,0.50278017]
[1762722839628,0.17788013,104500.0,104490.0,0.50278017]
[1762722841139,0.0918873,104500.0,104490.0,0.50278017]
[1762722841629,0.1876031,104500.0,104490.0,0.50278017]
[1762722841829,0.0918873,104500.0,104490.0,0.50278017]
[1762722842030,0.1876031,104500.0,104490.0,0.50278017]
[1762722842637,0.1876031,104500.0,104490.0,0.41081431]
[1762722842837,0.27359447,104500.0,104490.0,0.48720984]
[1762722843037,0.1876031,104500.0,104490.0,0.48720984]
[1762722843238,0.30792412,104500.0,104490.0,0.48720984]
[1762722844436,0.21220832,104500.0,104490.0,0.48720984]
[1762722844629,0.30792422,104500.0,104490.0,0.48720984]
[1762722845437,0.21220832,104500.0,104490.0,0.48720984]
[1762722849939,0.21220832,104500.0,104490.0,0.41081431]
[1762722850440,0.21220832,104500.0,104490.0,0.48720984]
[1762722852241,0.30792422,104500.0,104490.0,0.48720984]
[1762722852637,0.30792422,104500.0,104490.0,0.43819553]
[1762722852842,0.30792422,104500.0,104490.0,0.53392013]
[1762722854946,0.1876032,104500.0,104490.0,0.53392013]
[1762722855445,0.1876032,104500.0,104490.0,0.40456611]
[1762722855646,0.1876032,104500.0,104490.0,0.38276741]
[1762722857947,0.1876032,104500.0,104490.0,0.17312013]
[1762722858547,0.0918873,104500.0,104490.0,0.17312013]
[1762722859048,0.0918873,104500.0,104490.0,0.53392013]
[1762722859547,0.21232583,104500.0,104490.0,0.53392013]
[1762722859847,0.21232583,104500.0,104490.0,0.53515422]
[1762722860042,0.16777583,104500.0,104490.0,0.53515422]
[1762722860243,0.30792173,104500.0,104490.0,0.53392013]
[1762722860442,0.30792173,104500.0,104490.0,0.53523255]
[1762722860649,0.27350725,104500.0,104490.0,0.53523255]
[1762722860842,0.27350725,104500.0,104490.0,0.68263255]
[1762722861547,0.17779135,104500.0,104490.0,0.68263255]
[1762722861942,0.0917673,104500.0,104490.0,0.68263255]
[1762722865052,0.17779171,104500.0,104490.0,0.68263255]
[1762722870355,0.0917673,104500.0,104490.0,0.68263255]
[1762722872050,0.1874832,104500.0,104490.0,0.68263255]
[1762722872451,0.1874832,104500.0,104490.0,0.32183255]
[1762722874054,0.0917673,104500.0,104490.0,0.24543702]
[1762722874256,0.0917673,104500.0,104490.0,0.32183255]
[1762722875660,0.0917673,104500.0,104490.0,0.32244718]
[1762722875957,0.0917673,104500.0,104490.0,0.32052013]
[1762722876258,0.0917673,104500.0,104490.0,0.32306181]
[1762722876562,0.1874832,104500.0,104490.0,0.32306181]
[1762722876750,0.0917673,104500.0,104490.0,0.32306181]
[1762722877461,0.0917673,104500.0,104490.0,0.24666628]
[1762722877659,0.0917673,104500.0,104490.0,0.32306181]
[1762722877861,0.0917673,104500.0,104490.0,0.68386181]
[1762722880262,0.0917673,104500.0,104490.0,0.66829132]
[1762722880454,0.21220583,104500.0,104490.0,0.66829132]
[1762722881160,0.21086583,104500.0,104490.0,0.66829132]
[1762722890282,0.21086583,104500.0,104490.0,0.65272113]
[1762722893376,0.0904273,104500.0,104490.0,0.65272113]
[1762722893881,0.21086583,104500.0,104490.0,0.65272113]
[1762722894483,0.21086583,104500.0,104490.0,0.5763256]
[1762722894671,0.21086583,104500.0,104490.0,0.65272113]
[1762722895685,0.0904273,104500.0,104490.0,0.65272113]
[1762722895886,0.17645466,104500.0,104490.0,0.65272113]
[1762722896886,0.17645466,104500.0,104490.0,0.74822666]
[1762722897486,0.0904273,104500.0,104490.0,0.74822666]
[1762722900290,0.0904273,104500.0,104490.0,0.73265654]
[1762722901784,0.21086583,104500.0,104490.0,0.73265654]
[1762722903081,0.08163844,104510.0,104500.0,0.0957159]
[1762722903283,0.01281346,104510.0,104500.0,0.62841696]
[1762722903483,0.01281346,104510.0,104500.0,0.54246643]
[1762722904188,0.01281346,104510.0,104500.0,0.54500811]
[1762722904585,0.01281346,104510.0,104500.0,0.63095864]
[1762722904786,0.01281346,104510.0,104500.0,0.54500811]
[1762722904996,0.01481346,104510.0,104500.0,0.54500811]
[1762722905390,0.01881346,104510.0,104500.0,0.54600811]
[1762722905796,0.01881346,104510.0,104500.0,0.63195864]
[1762722906794,0.20794031,104530.0,104510.0,0.0957067]
[1762722907000,0.21013834,104530.0,104520.0,0.53270106]
[1762722907189,0.21013834,104530.0,104520.0,0.40592074]
[1762722907598,0.03843803,104530.0,104520.0,0.40592074]
[1762722907786,0.06150803,104530.0,104520.0,0.50161834]
[1762722908298,0.04543803,104530.0,104520.0,0.50161834]
[1762722908597,0.04943803,104530.0,104520.0,0.50161834]
[1762722908993,0.03843803,104530.0,104520.0,0.50161834]
[1762722909191,0.04943803,104530.0,104520.0,0.50361834]